[Event "*** SCC Grand Prix: Titled Tuesday Blitz"]
[Site "Chess.com"]
[Date "2020.07.07"]
[Round "1"]
[White "AleksanderHnydiuk"]
[Black "GMJustin"]
[Result "1-0"]
[WhiteElo "2597"]
[BlackElo "2266"]
[TimeControl "180+1"]
[EndTime "10:06:50 PDT"]
[Termination "AleksanderHnydiuk won on time"]

1. d4 {[%clk 0:02:56.6]} 1... Nf6 {[%clk 0:02:38.6]} 2. c4 {[%clk 0:02:56]} 2...
e6 {[%clk 0:02:30]} 3. g3 {[%clk 0:02:55.8]} 3... c5 {[%clk 0:02:28.7]} 4. Nf3
{[%clk 0:02:55.8]} 4... cxd4 {[%clk 0:02:23.8]} 5. Nxd4 {[%clk 0:02:56.7]} 5...
d5 {[%clk 0:02:23.4]} 6. Bg2 {[%clk 0:02:55.9]} 6... e5 {[%clk 0:02:22.8]} 7.
Nf3 {[%clk 0:02:55.9]} 7... d4 {[%clk 0:02:22.5]} 8. O-O {[%clk 0:02:56.3]} 8...
Nc6 {[%clk 0:02:21.4]} 9. e3 {[%clk 0:02:56.5]} 9... Be7 {[%clk 0:02:18.4]} 10.
exd4 {[%clk 0:02:56.6]} 10... exd4 {[%clk 0:02:17.9]} 11. Bf4 {[%clk 0:02:56.1]}
11... O-O {[%clk 0:02:16.4]} 12. Ne5 {[%clk 0:02:56.1]} 12... Nxe5 {[%clk
0:01:57.5]} 13. Bxe5 {[%clk 0:02:57]} 13... Bc5 {[%clk 0:01:57.4]} 14. Nd2
{[%clk 0:02:54.6]} 14... Ng4 {[%clk 0:01:44.6]} 15. Nb3 {[%clk 0:02:31.6]} 15...
Nxe5 {[%clk 0:01:31.9]} 16. Nxc5 {[%clk 0:02:31.6]} 16... Nxc4 {[%clk
0:01:31.5]} 17. Rc1 {[%clk 0:02:19.5]} 17... Ne5 {[%clk 0:01:16.5]} 18. Re1
{[%clk 0:02:14]} 18... Nc6 {[%clk 0:00:59.2]} 19. Qa4 {[%clk 0:02:05.6]} 19...
Qb6 {[%clk 0:00:53.6]} 20. Bxc6 {[%clk 0:01:33.4]} 20... Qxc6 {[%clk 0:00:41.9]}
21. Qxc6 {[%clk 0:01:33.1]} 21... bxc6 {[%clk 0:00:42]} 22. Red1 {[%clk
0:01:22.6]} 22... Rd8 {[%clk 0:00:29.5]} 23. Rc4 {[%clk 0:01:22]} 23... d3
{[%clk 0:00:20.5]} 24. Rc3 {[%clk 0:01:19.8]} 24... Bf5 {[%clk 0:00:18]} 25. f3
{[%clk 0:01:05.2]} 25... Rd5 {[%clk 0:00:16.3]} 26. Kf2 {[%clk 0:01:02.1]} 26...
Rb8 {[%clk 0:00:15.1]} 27. Rd2 {[%clk 0:01:01.3]} 27... h5 {[%clk 0:00:11.4]}
28. b3 {[%clk 0:00:58.5]} 28... Re8 {[%clk 0:00:08.2]} 29. Na4 {[%clk
0:00:49.2]} 29... Re6 {[%clk 0:00:05.1]} 30. Nb2 {[%clk 0:00:46.9]} 30... Red6
{[%clk 0:00:03.1]} 31. Nc4 {[%clk 0:00:46.5]} 31... Re6 {[%clk 0:00:02.9]} 32.
Ne3 {[%clk 0:00:46.8]} 32... Rde5 {[%clk 0:00:02]} 33. Nxf5 {[%clk 0:00:45.8]}
33... Rxf5 {[%clk 0:00:01.3]} 34. Rcxd3 {[%clk 0:00:44.2]} 34... Rfe5 {[%clk
0:00:01.2]} 35. Rd8+ {[%clk 0:00:42.7]} 1-0

[Event "*** SCC Grand Prix: Titled Tuesday Blitz"]
[Site "Chess.com"]
[Date "2020.07.07"]
[Round "1"]
[White "profofchess"]
[Black "Eltaj_Safarli"]
[Result "1/2-1/2"]
[WhiteElo "2459"]
[BlackElo "2919"]
[TimeControl "180+1"]
[EndTime "10:06:51 PDT"]
[Termination "Game drawn by repetition"]

1. e4 {[%clk 0:03:00.7]} 1... e5 {[%clk 0:02:59.1]} 2. Nf3 {[%clk 0:03:00.3]}
2... Nc6 {[%clk 0:02:59.5]} 3. Nc3 {[%clk 0:03:00.6]} 3... Nf6 {[%clk
0:02:59.3]} 4. Bb5 {[%clk 0:03:00.8]} 4... Bb4 {[%clk 0:02:58.9]} 5. O-O {[%clk
0:02:58.9]} 5... O-O {[%clk 0:02:57.9]} 6. d3 {[%clk 0:02:59.1]} 6... d6 {[%clk
0:02:57.4]} 7. Ne2 {[%clk 0:02:58.3]} 7... Ne7 {[%clk 0:02:55.3]} 8. Ng3 {[%clk
0:02:57.8]} 8... c6 {[%clk 0:02:54.8]} 9. Ba4 {[%clk 0:02:56.7]} 9... Ng6 {[%clk
0:02:55.1]} 10. c3 {[%clk 0:02:56.4]} 10... Ba5 {[%clk 0:02:55.6]} 11. d4 {[%clk
0:02:54.3]} 11... Bb6 {[%clk 0:02:53.1]} 12. h3 {[%clk 0:02:43.1]} 12... Re8
{[%clk 0:02:52.7]} 13. Re1 {[%clk 0:02:42.1]} 13... h6 {[%clk 0:02:50.5]} 14.
Be3 {[%clk 0:02:28.8]} 14... Qc7 {[%clk 0:02:20.2]} 15. Qd2 {[%clk 0:02:13.6]}
15... exd4 {[%clk 0:02:20.2]} 16. Bxd4 {[%clk 0:02:01.3]} 16... Ne5 {[%clk
0:02:20.5]} 17. Nh4 {[%clk 0:01:39.4]} 17... c5 {[%clk 0:01:57.6]} 18. Bxe5
{[%clk 0:01:29.4]} 18... dxe5 {[%clk 0:01:58.5]} 19. Bxe8 {[%clk 0:01:28.7]}
19... Nxe8 {[%clk 0:01:58]} 20. Nhf5 {[%clk 0:01:26.2]} 20... Be6 {[%clk
0:01:55.7]} 21. Nh5 {[%clk 0:01:21.7]} 21... f6 {[%clk 0:01:39.7]} 22. Qe3
{[%clk 0:01:14.7]} 22... c4 {[%clk 0:01:37.3]} 23. Qg3 {[%clk 0:01:14.2]} 23...
Kh7 {[%clk 0:01:37.9]} 24. Nfxg7 {[%clk 0:00:34.6]} 24... Qf7 {[%clk 0:01:38.3]}
25. Nxe8 {[%clk 0:00:33]} 25... Rxe8 {[%clk 0:01:39.2]} 26. Qh4 {[%clk
0:00:30.4]} 26... Rf8 {[%clk 0:01:38.1]} 27. Rad1 {[%clk 0:00:25.7]} 27... Bc5
{[%clk 0:01:38.5]} 28. Kh1 {[%clk 0:00:21.1]} 28... Qg6 {[%clk 0:01:38.6]} 29.
g4 {[%clk 0:00:18.7]} 29... Be7 {[%clk 0:01:37.3]} 30. Re2 {[%clk 0:00:17.9]}
30... Qf7 {[%clk 0:01:34.7]} 31. Qg3 {[%clk 0:00:16.6]} 31... b5 {[%clk
0:01:33.2]} 32. Qf3 {[%clk 0:00:14.6]} 32... a5 {[%clk 0:01:32.6]} 33. Ng3
{[%clk 0:00:14.5]} 33... Rb8 {[%clk 0:01:15.4]} 34. Nf5 {[%clk 0:00:14.6]} 34...
Bf8 {[%clk 0:01:16]} 35. Nd6 {[%clk 0:00:11.1]} 35... Qg6 {[%clk 0:01:13.5]} 36.
Red2 {[%clk 0:00:09.4]} 36... b4 {[%clk 0:01:13.5]} 37. Nf5 {[%clk 0:00:09.5]}
37... bxc3 {[%clk 0:01:13.8]} 38. bxc3 {[%clk 0:00:10.4]} 38... Qe8 {[%clk
0:01:12]} 39. Ne3 {[%clk 0:00:09.4]} 39... Bg7 {[%clk 0:01:09.6]} 40. Nd5 {[%clk
0:00:09.4]} 40... Qg6 {[%clk 0:01:09.4]} 41. Ne7 {[%clk 0:00:08.5]} 41... Qf7
{[%clk 0:01:09.5]} 42. Nf5 {[%clk 0:00:08.5]} 42... Bf8 {[%clk 0:01:00.9]} 43.
Nd6 {[%clk 0:00:08.4]} 43... Qg6 {[%clk 0:01:00.5]} 44. Nf5 {[%clk 0:00:06.6]}
44... Qe8 {[%clk 0:00:59.9]} 45. Nd6 {[%clk 0:00:05.5]} 45... Qg6 {[%clk
0:00:57.1]} 46. Nf5 {[%clk 0:00:05.5]} 1/2-1/2

[Event "*** SCC Grand Prix: Titled Tuesday Blitz"]
[Site "Chess.com"]
[Date "2020.07.07"]
[Round "1"]
[White "Jospem"]
[Black "Stormeman100100"]
[Result "1-0"]
[WhiteElo "2906"]
[BlackElo "2447"]
[TimeControl "180+1"]
[EndTime "10:06:52 PDT"]
[Termination "Jospem won by resignation"]

1. e4 {[%clk 0:02:54.5]} 1... e5 {[%clk 0:02:58.4]} 2. Nf3 {[%clk 0:02:53.6]}
2... Nc6 {[%clk 0:02:58.8]} 3. Bb5 {[%clk 0:02:52.9]} 3... a6 {[%clk 0:02:58.5]}
4. Ba4 {[%clk 0:02:53]} 4... Nf6 {[%clk 0:02:58.1]} 5. O-O {[%clk 0:02:52.4]}
5... Be7 {[%clk 0:02:58.2]} 6. Re1 {[%clk 0:02:51.2]} 6... b5 {[%clk 0:02:57]}
7. Bb3 {[%clk 0:02:51.3]} 7... O-O {[%clk 0:02:57.6]} 8. a4 {[%clk 0:02:49.5]}
8... Bb7 {[%clk 0:02:56.8]} 9. d3 {[%clk 0:02:45.8]} 9... Bc5 {[%clk 0:02:43.8]}
10. Nbd2 {[%clk 0:02:26]} 10... d6 {[%clk 0:02:42.1]} 11. h3 {[%clk 0:02:25.2]}
11... h6 {[%clk 0:02:33.5]} 12. Nf1 {[%clk 0:02:20.1]} 12... Qd7 {[%clk
0:02:11.1]} 13. Be3 {[%clk 0:02:18.6]} 13... Bxe3 {[%clk 0:02:05]} 14. Nxe3
{[%clk 0:02:09.3]} 14... Nd4 {[%clk 0:02:04.4]} 15. Nxd4 {[%clk 0:02:06.6]}
15... exd4 {[%clk 0:02:03.8]} 16. Nf5 {[%clk 0:02:07.1]} 16... c5 {[%clk
0:02:03.4]} 17. Qf3 {[%clk 0:02:07.5]} 17... c4 {[%clk 0:01:14.2]} 18. dxc4
{[%clk 0:01:41.9]} 18... Rae8 {[%clk 0:01:06]} 19. Qg3 {[%clk 0:01:17.7]} 19...
Nh5 {[%clk 0:01:04.7]} 20. Qg4 {[%clk 0:01:17]} 20... Re6 {[%clk 0:00:45.2]} 21.
Qxh5 {[%clk 0:01:06.5]} 21... g6 {[%clk 0:00:45.2]} 22. Nxh6+ {[%clk 0:01:05.6]}
22... Kg7 {[%clk 0:00:45.5]} 23. Qg5 {[%clk 0:00:59.1]} 23... f6 {[%clk
0:00:41.8]} 24. Qf4 {[%clk 0:00:49]} 24... Re5 {[%clk 0:00:38]} 25. Ng4 {[%clk
0:00:47.6]} 25... Rg5 {[%clk 0:00:37.5]} 26. Nxf6 {[%clk 0:00:34.5]} 26... Rxg2+
{[%clk 0:00:35.6]} 27. Kxg2 {[%clk 0:00:35.4]} 27... Rxf6 {[%clk 0:00:35.5]} 28.
Qg4 {[%clk 0:00:28.8]} 28... Qf7 {[%clk 0:00:28.6]} 29. cxb5 {[%clk 0:00:26.2]}
29... Qf8 {[%clk 0:00:28.3]} 30. f3 {[%clk 0:00:23]} 30... Bc8 {[%clk
0:00:24.7]} 31. Qg3 {[%clk 0:00:20.2]} 31... axb5 {[%clk 0:00:23.1]} 32. axb5
{[%clk 0:00:20.3]} 32... Qe8 {[%clk 0:00:23.2]} 33. Ra7+ {[%clk 0:00:20.3]}
33... Kf8 {[%clk 0:00:21.3]} 34. Qh4 {[%clk 0:00:17.9]} 1-0

[Event "*** SCC Grand Prix: Titled Tuesday Blitz"]
[Site "Chess.com"]
[Date "2020.07.07"]
[Round "1"]
[White "wild_cat99"]
[Black "Julianos82"]
[Result "1-0"]
[WhiteElo "2602"]
[BlackElo "2268"]
[TimeControl "180+1"]
[EndTime "10:06:53 PDT"]
[Termination "wild_cat99 won by resignation"]

1. Nf3 {[%clk 0:03:00.9]} 1... d5 {[%clk 0:02:57.6]} 2. e3 {[%clk 0:02:59.9]}
2... c6 {[%clk 0:02:53.1]} 3. c4 {[%clk 0:02:59.4]} 3... Nf6 {[%clk 0:02:51.4]}
4. Nc3 {[%clk 0:02:58.2]} 4... e6 {[%clk 0:02:50.2]} 5. b3 {[%clk 0:02:57.2]}
5... Nbd7 {[%clk 0:02:49.6]} 6. Bb2 {[%clk 0:02:54.2]} 6... Bd6 {[%clk 0:02:49]}
7. d4 {[%clk 0:02:43.1]} 7... O-O {[%clk 0:02:47.2]} 8. Bd3 {[%clk 0:02:42.7]}
8... b6 {[%clk 0:02:43.9]} 9. Qc2 {[%clk 0:02:42.4]} 9... Bb7 {[%clk 0:02:43.8]}
10. O-O {[%clk 0:02:42.9]} 10... c5 {[%clk 0:02:42.3]} 11. cxd5 {[%clk
0:02:37.1]} 11... exd5 {[%clk 0:02:40.8]} 12. dxc5 {[%clk 0:02:33.6]} 12... bxc5
{[%clk 0:02:41.7]} 13. Rfd1 {[%clk 0:02:23.2]} 13... Rc8 {[%clk 0:02:33.9]} 14.
Nb5 {[%clk 0:02:17.9]} 14... Bb8 {[%clk 0:02:31.6]} 15. Bf5 {[%clk 0:02:15.2]}
15... Rc6 {[%clk 0:01:49.5]} 16. Bxf6 {[%clk 0:02:01.1]} 16... Nxf6 {[%clk
0:01:41.6]} 17. a4 {[%clk 0:01:45.3]} 17... Qe7 {[%clk 0:01:33.5]} 18. Nc3
{[%clk 0:01:21.8]} 18... Rd8 {[%clk 0:01:20.5]} 19. Rac1 {[%clk 0:00:52.1]}
19... g6 {[%clk 0:01:08.3]} 20. Bd3 {[%clk 0:00:46.1]} 20... d4 {[%clk 0:01:05]}
21. Be4 {[%clk 0:00:41.8]} 21... dxc3 {[%clk 0:00:58.2]} 22. Bxc6 {[%clk
0:00:40.4]} 22... Bxc6 {[%clk 0:00:48.2]} 23. Rxd8+ {[%clk 0:00:36.1]} 23...
Qxd8 {[%clk 0:00:49.1]} 24. Qxc3 {[%clk 0:00:37]} 24... Bxf3 {[%clk 0:00:45.9]}
25. gxf3 {[%clk 0:00:37.9]} 25... Qd6 {[%clk 0:00:40.9]} 26. Qxc5 {[%clk
0:00:37.6]} 26... Qxh2+ {[%clk 0:00:39.5]} 27. Kf1 {[%clk 0:00:37.6]} 27... Bd6
{[%clk 0:00:33.6]} 28. Qc8+ {[%clk 0:00:37.3]} 28... Kg7 {[%clk 0:00:33]} 29.
Qc3 {[%clk 0:00:37]} 29... Be5 {[%clk 0:00:31.5]} 30. Qc6 {[%clk 0:00:32.3]}
30... h5 {[%clk 0:00:30.2]} 31. Ke2 {[%clk 0:00:31.9]} 31... h4 {[%clk
0:00:29.2]} 32. f4 {[%clk 0:00:29.8]} 32... Bxf4 {[%clk 0:00:29.3]} 33. Rh1
{[%clk 0:00:26.6]} 33... Ng4 {[%clk 0:00:16.4]} 34. Rxh2 {[%clk 0:00:25.8]}
34... Bxh2 {[%clk 0:00:17.3]} 35. Qg2 {[%clk 0:00:24.6]} 35... f5 {[%clk
0:00:16.1]} 36. f3 {[%clk 0:00:24.7]} 36... h3 {[%clk 0:00:15.4]} 37. Qxh3
{[%clk 0:00:23.7]} 1-0

[Event "*** SCC Grand Prix: Titled Tuesday Blitz"]
[Site "Chess.com"]
[Date "2020.07.07"]
[Round "1"]
[White "Kotofeyca"]
[Black "tapu2"]
[Result "0-1"]
[WhiteElo "2356"]
[BlackElo "2678"]
[TimeControl "180+1"]
[EndTime "10:06:55 PDT"]
[Termination "tapu2 won by resignation"]

1. d4 {[%clk 0:03:00.9]} 1... Nf6 {[%clk 0:02:59.8]} 2. c4 {[%clk 0:03:01]} 2...
g6 {[%clk 0:03:00]} 3. f3 {[%clk 0:03:00.9]} 3... Bg7 {[%clk 0:02:59.3]} 4. e4
{[%clk 0:03:00.4]} 4... d6 {[%clk 0:02:59.6]} 5. Nc3 {[%clk 0:03:01.3]} 5... O-O
{[%clk 0:02:57.8]} 6. Be3 {[%clk 0:03:01.5]} 6... c5 {[%clk 0:02:58.1]} 7. dxc5
{[%clk 0:03:00.7]} 7... dxc5 {[%clk 0:02:57.9]} 8. Qxd8 {[%clk 0:03:01.6]} 8...
Rxd8 {[%clk 0:02:58.8]} 9. Bxc5 {[%clk 0:03:02.5]} 9... Nc6 {[%clk 0:02:59.4]}
10. Nd5 {[%clk 0:03:03]} 10... Nd7 {[%clk 0:02:59.7]} 11. Nxe7+ {[%clk
0:03:02.4]} 11... Nxe7 {[%clk 0:02:59.6]} 12. Bxe7 {[%clk 0:03:03.3]} 12... Bxb2
{[%clk 0:02:58.7]} 13. Bxd8 {[%clk 0:03:01.9]} 13... Bxa1 {[%clk 0:02:57.6]} 14.
Ne2 {[%clk 0:03:02.2]} 14... Ne5 {[%clk 0:02:54.8]} 15. Nf4 {[%clk 0:03:02.4]}
15... Bc3+ {[%clk 0:02:49.8]} 16. Kd1 {[%clk 0:03:01.9]} 16... Bd7 {[%clk
0:02:49.3]} 17. Bc7 {[%clk 0:03:00.7]} 17... Rc8 {[%clk 0:02:46.3]} 18. Nd5
{[%clk 0:03:00.5]} 18... Kg7 {[%clk 0:02:35.8]} 19. Kc2 {[%clk 0:02:56.8]} 19...
Bd4 {[%clk 0:02:28.4]} 20. Be2 {[%clk 0:02:11.2]} 20... Bc6 {[%clk 0:02:26.2]}
21. Rd1 {[%clk 0:01:25.2]} 21... Ba4+ {[%clk 0:02:25.8]} 22. Kc1 {[%clk
0:01:17.7]} 22... Bxd1 {[%clk 0:02:25]} 23. Kxd1 {[%clk 0:01:16.5]} 23... Nc6
{[%clk 0:02:24.2]} 24. Kd2 {[%clk 0:01:11.3]} 24... Be5 {[%clk 0:02:23.1]} 25.
Bxe5+ {[%clk 0:01:06.7]} 25... Nxe5 {[%clk 0:02:24]} 26. Kc3 {[%clk 0:01:06.9]}
26... b5 {[%clk 0:02:16]} 27. Ne3 {[%clk 0:00:57.1]} 27... Kf6 {[%clk
0:02:01.3]} 28. f4 {[%clk 0:00:41]} 28... Nxc4 {[%clk 0:01:49.4]} 29. Nxc4
{[%clk 0:00:40.9]} 29... bxc4 {[%clk 0:01:49.6]} 30. Bxc4 {[%clk 0:00:41.8]}
30... g5 {[%clk 0:01:50.1]} 31. g3 {[%clk 0:00:33]} 31... gxf4 {[%clk 0:01:48]}
32. gxf4 {[%clk 0:00:33.9]} 32... Rg8 {[%clk 0:01:48.6]} 33. e5+ {[%clk
0:00:29.7]} 33... Ke7 {[%clk 0:01:48.2]} 34. f5 {[%clk 0:00:26.3]} 34... Rg2
{[%clk 0:01:43.5]} 35. h4 {[%clk 0:00:19.4]} 35... Rh2 {[%clk 0:01:41.8]} 36.
Kd4 {[%clk 0:00:17.7]} 36... Rxh4+ {[%clk 0:01:41.2]} 37. Kd5 {[%clk 0:00:18.6]}
37... h5 {[%clk 0:01:32.7]} 38. f6+ {[%clk 0:00:19.5]} 38... Kf8 {[%clk
0:01:32.9]} 39. Bd3 {[%clk 0:00:12.3]} 39... Rh2 {[%clk 0:01:31.3]} 40. Bf5
{[%clk 0:00:07.9]} 40... Rxa2 {[%clk 0:01:27.3]} 41. e6 {[%clk 0:00:07.1]} 41...
fxe6+ {[%clk 0:01:24.1]} 42. Kxe6 {[%clk 0:00:07.2]} 42... Ra6+ {[%clk
0:01:19.6]} 43. Ke5 {[%clk 0:00:06.8]} 43... Ra5+ {[%clk 0:01:19.7]} 44. Ke6
{[%clk 0:00:06.1]} 44... Rxf5 {[%clk 0:01:19.7]} 45. Kxf5 {[%clk 0:00:05.8]}
45... a5 {[%clk 0:01:20.1]} 46. Kg5 {[%clk 0:00:05.4]} 46... a4 {[%clk
0:01:20.4]} 47. Kxh5 {[%clk 0:00:04]} 47... a3 {[%clk 0:01:20.8]} 0-1

[Event "*** SCC Grand Prix: Titled Tuesday Blitz"]
[Site "Chess.com"]
[Date "2020.07.07"]
[Round "1"]
[White "Herracek"]
[Black "VladimirBugayev"]
[Result "1-0"]
[WhiteElo "2591"]
[BlackElo "2253"]
[TimeControl "180+1"]
[EndTime "10:06:55 PDT"]
[Termination "Herracek won by resignation"]

1. c4 {[%clk 0:03:00.9]} 1... c6 {[%clk 0:02:59.3]} 2. Nc3 {[%clk 0:03:00.6]}
2... d5 {[%clk 0:02:58.5]} 3. cxd5 {[%clk 0:03:01.5]} 3... cxd5 {[%clk
0:02:58.1]} 4. d4 {[%clk 0:03:02.4]} 4... Nc6 {[%clk 0:02:56.4]} 5. e4 {[%clk
0:03:02.5]} 5... dxe4 {[%clk 0:02:50.4]} 6. d5 {[%clk 0:03:03.4]} 6... Ne5
{[%clk 0:02:50.2]} 7. Qa4+ {[%clk 0:02:47.7]} 7... Nd7 {[%clk 0:02:46.8]} 8.
Nxe4 {[%clk 0:02:45.9]} 8... g6 {[%clk 0:02:38.1]} 9. Bg5 {[%clk 0:02:40.6]}
9... Bg7 {[%clk 0:02:37.6]} 10. Nd6+ {[%clk 0:02:39.8]} 10... Kf8 {[%clk
0:02:34.8]} 11. Nxc8 {[%clk 0:02:05.1]} 11... Qxc8 {[%clk 0:02:21.4]} 12. Rc1
{[%clk 0:02:04.4]} 12... Qd8 {[%clk 0:02:17.8]} 13. Bb5 {[%clk 0:01:52.7]} 13...
Nb6 {[%clk 0:02:13.9]} 14. Qb3 {[%clk 0:01:41.4]} 14... Qxd5 {[%clk 0:01:54.6]}
15. Qxd5 {[%clk 0:01:40.9]} 15... Nxd5 {[%clk 0:01:54.5]} 16. b3 {[%clk
0:01:36.6]} 16... Bf6 {[%clk 0:01:48]} 17. Bd2 {[%clk 0:01:34.9]} 17... e6
{[%clk 0:01:39.3]} 18. Nf3 {[%clk 0:01:32.7]} 18... Nge7 {[%clk 0:01:39.2]} 19.
g4 {[%clk 0:01:15.8]} 19... a6 {[%clk 0:01:38.5]} 20. Bc4 {[%clk 0:01:14.5]}
20... h6 {[%clk 0:01:29.3]} 21. h4 {[%clk 0:01:13.5]} 21... Kg7 {[%clk
0:01:28.2]} 22. Ke2 {[%clk 0:01:10.1]} 22... b5 {[%clk 0:01:26.9]} 23. Bd3
{[%clk 0:01:06]} 23... Rac8 {[%clk 0:01:26.9]} 24. g5 {[%clk 0:01:06.2]} 24...
hxg5 {[%clk 0:01:24.5]} 25. hxg5 {[%clk 0:01:04.5]} 25... Bb2 {[%clk 0:01:22.9]}
26. Rxh8 {[%clk 0:01:03.8]} 26... Kxh8 {[%clk 0:01:11.5]} 27. Rh1+ {[%clk
0:00:50.1]} 27... Kg8 {[%clk 0:01:10.6]} 28. a4 {[%clk 0:00:50.5]} 28... bxa4
{[%clk 0:00:48.9]} 29. bxa4 {[%clk 0:00:51.4]} 29... Rc6 {[%clk 0:00:40.3]} 30.
Rb1 {[%clk 0:00:26.5]} 30... Nc3+ {[%clk 0:00:38.5]} 31. Bxc3 {[%clk 0:00:26.9]}
31... Bxc3 {[%clk 0:00:38.3]} 32. Rb7 {[%clk 0:00:24.9]} 32... Nd5 {[%clk
0:00:34.6]} 33. Be4 {[%clk 0:00:23.4]} 33... a5 {[%clk 0:00:21.8]} 34. Bxd5
{[%clk 0:00:23.5]} 34... exd5 {[%clk 0:00:21.6]} 35. Rd7 {[%clk 0:00:23.9]}
35... Rc4 {[%clk 0:00:17.3]} 36. Kd3 {[%clk 0:00:24]} 36... d4 {[%clk
0:00:16.4]} 37. Kxc4 {[%clk 0:00:23.8]} 37... Kg7 {[%clk 0:00:14.2]} 38. Ne5
{[%clk 0:00:23.3]} 1-0

[Event "*** SCC Grand Prix: Titled Tuesday Blitz"]
[Site "Chess.com"]
[Date "2020.07.07"]
[Round "1"]
[White "Zarinur"]
[Black "regular_legs"]
[Result "0-1"]
[WhiteElo "2147"]
[BlackElo "2529"]
[TimeControl "180+1"]
[EndTime "10:06:55 PDT"]
[Termination "regular_legs won by checkmate"]

1. e4 {[%clk 0:02:59.8]} 1... c5 {[%clk 0:02:58.5]} 2. Nf3 {[%clk 0:02:58]} 2...
e6 {[%clk 0:02:57.9]} 3. g3 {[%clk 0:02:57.4]} 3... Nc6 {[%clk 0:02:56.4]} 4.
Bg2 {[%clk 0:02:56.6]} 4... Nf6 {[%clk 0:02:50.4]} 5. Qe2 {[%clk 0:02:54.5]}
5... Be7 {[%clk 0:02:45.7]} 6. O-O {[%clk 0:02:53.1]} 6... O-O {[%clk
0:02:45.7]} 7. Rd1 {[%clk 0:02:52.1]} 7... e5 {[%clk 0:02:45.4]} 8. c3 {[%clk
0:02:49.3]} 8... Re8 {[%clk 0:02:45.1]} 9. d4 {[%clk 0:02:44.4]} 9... cxd4
{[%clk 0:02:17.6]} 10. cxd4 {[%clk 0:02:45.3]} 10... d5 {[%clk 0:02:17.4]} 11.
Nxe5 {[%clk 0:02:37.9]} 11... dxe4 {[%clk 0:02:06.6]} 12. Nxc6 {[%clk
0:02:22.7]} 12... bxc6 {[%clk 0:02:07.5]} 13. Nc3 {[%clk 0:02:19.7]} 13... Bg4
{[%clk 0:02:02.1]} 14. f3 {[%clk 0:02:12.6]} 14... exf3 {[%clk 0:01:59.9]} 15.
Bxf3 {[%clk 0:02:13.5]} 15... Bb4 {[%clk 0:01:45.2]} 16. Qf2 {[%clk 0:02:10.8]}
16... Bxc3 {[%clk 0:01:41.7]} 17. bxc3 {[%clk 0:02:11.7]} 17... Ne4 {[%clk
0:01:41.4]} 18. Bxe4 {[%clk 0:01:41.9]} 18... Bxd1 {[%clk 0:01:09.8]} 19. Bxc6
{[%clk 0:01:40.4]} 19... Re2 {[%clk 0:01:03.2]} 20. Qf1 {[%clk 0:01:39.7]} 20...
Qe7 {[%clk 0:00:55.3]} 21. Bg5 {[%clk 0:00:24.3]} 21... Qxg5 {[%clk 0:00:52.9]}
22. Rxd1 {[%clk 0:00:23]} 22... Qe3+ {[%clk 0:00:50.9]} 23. Kh1 {[%clk
0:00:22.4]} 23... Rc8 {[%clk 0:00:47.3]} 24. Bg2 {[%clk 0:00:17.2]} 24... Rxc3
{[%clk 0:00:41.2]} 25. Rb1 {[%clk 0:00:15.8]} 25... g6 {[%clk 0:00:34.9]} 26.
Bd5 {[%clk 0:00:11.1]} 26... Rf2 {[%clk 0:00:30.8]} 27. Qd1 {[%clk 0:00:09.4]}
27... Rcc2 {[%clk 0:00:26.5]} 28. Rb8+ {[%clk 0:00:06.7]} 28... Kg7 {[%clk
0:00:26.2]} 29. Rb7 {[%clk 0:00:01.9]} 29... Rxh2# {[%clk 0:00:25]} 0-1

[Event "*** SCC Grand Prix: Titled Tuesday Blitz"]
[Site "Chess.com"]
[Date "2020.07.07"]
[Round "1"]
[White "ChelsieMonica"]
[Black "Matibar"]
[Result "0-1"]
[WhiteElo "2395"]
[BlackElo "2733"]
[TimeControl "180+1"]
[EndTime "10:06:56 PDT"]
[Termination "Matibar won by resignation"]

1. c4 {[%clk 0:03:00.4]} 1... e5 {[%clk 0:02:45]} 2. Nc3 {[%clk 0:02:59.6]} 2...
Nf6 {[%clk 0:02:42.4]} 3. g3 {[%clk 0:02:58.6]} 3... Bc5 {[%clk 0:02:37.6]} 4.
Bg2 {[%clk 0:02:56.6]} 4... O-O {[%clk 0:02:36.8]} 5. e3 {[%clk 0:02:55.5]} 5...
Re8 {[%clk 0:02:36.3]} 6. Nge2 {[%clk 0:02:48.4]} 6... Nc6 {[%clk 0:02:36]} 7.
O-O {[%clk 0:02:42.6]} 7... d6 {[%clk 0:02:30.5]} 8. h3 {[%clk 0:02:40.9]} 8...
h6 {[%clk 0:02:21.2]} 9. d4 {[%clk 0:02:39.3]} 9... Bb6 {[%clk 0:02:20.9]} 10.
d5 {[%clk 0:02:18.6]} 10... Nb8 {[%clk 0:02:12.2]} 11. e4 {[%clk 0:02:17.7]}
11... a5 {[%clk 0:02:02.7]} 12. Kh2 {[%clk 0:02:09.6]} 12... Nbd7 {[%clk
0:01:56.9]} 13. Be3 {[%clk 0:02:05.7]} 13... Bxe3 {[%clk 0:01:53.7]} 14. fxe3
{[%clk 0:02:04.3]} 14... Nh7 {[%clk 0:01:44.1]} 15. g4 {[%clk 0:01:59.9]} 15...
Rf8 {[%clk 0:01:43.4]} 16. Ng3 {[%clk 0:01:59.9]} 16... g6 {[%clk 0:01:43.7]}
17. Qe2 {[%clk 0:01:57.6]} 17... Nc5 {[%clk 0:01:41.5]} 18. Rf2 {[%clk
0:01:57.7]} 18... Kg7 {[%clk 0:01:41.3]} 19. Raf1 {[%clk 0:01:57.5]} 19... Bd7
{[%clk 0:01:41]} 20. Rf3 {[%clk 0:01:54.4]} 20... Qh4 {[%clk 0:01:31.1]} 21. Qf2
{[%clk 0:01:46.4]} 21... Qe7 {[%clk 0:01:30.8]} 22. h4 {[%clk 0:01:40.1]} 22...
Qxh4+ {[%clk 0:01:29.8]} 23. Bh3 {[%clk 0:01:40.6]} 23... Qe7 {[%clk 0:01:26.4]}
24. Qg2 {[%clk 0:01:24.5]} 24... Ng5 {[%clk 0:01:22.5]} 25. R3f2 {[%clk
0:01:24.5]} 25... Rh8 {[%clk 0:01:21.3]} 26. a3 {[%clk 0:01:20.7]} 26... a4
{[%clk 0:01:20.5]} 27. Nb5 {[%clk 0:01:19.9]} 27... Rac8 {[%clk 0:00:56.2]} 28.
Nc3 {[%clk 0:01:13.7]} 28... Rcf8 {[%clk 0:00:55.2]} 29. Rf6 {[%clk 0:01:03.5]}
29... Qxf6 {[%clk 0:00:47.5]} 30. Rxf6 {[%clk 0:01:02.7]} 30... Kxf6 {[%clk
0:00:48.4]} 31. Qf1+ {[%clk 0:01:02.7]} 31... Kg7 {[%clk 0:00:48.7]} 32. Kg2
{[%clk 0:01:02.9]} 32... h5 {[%clk 0:00:43.4]} 33. Kg1 {[%clk 0:00:56.4]} 33...
Nxh3+ {[%clk 0:00:35]} 34. Qxh3 {[%clk 0:00:56.4]} 34... hxg4 {[%clk 0:00:33.4]}
35. Qg2 {[%clk 0:00:56.8]} 35... Rh3 {[%clk 0:00:32.6]} 36. Nce2 {[%clk
0:00:55.2]} 36... Rfh8 {[%clk 0:00:32.4]} 37. Qf1 {[%clk 0:00:52.4]} 37... b6
{[%clk 0:00:20.5]} 38. Qb1 {[%clk 0:00:47.5]} 38... f6 {[%clk 0:00:20.1]} 39.
Qc2 {[%clk 0:00:47.3]} 39... Rh2 {[%clk 0:00:19.5]} 40. Nf1 {[%clk 0:00:44.5]}
40... Rh1+ {[%clk 0:00:18.7]} 41. Kf2 {[%clk 0:00:44.9]} 41... R1h3 {[%clk
0:00:17.5]} 42. Neg3 {[%clk 0:00:44.7]} 42... Rh2+ {[%clk 0:00:17]} 0-1